fUSD/lending_fUSD_20240215
["ID","MTS","AMOUNT","RATE_DAILY","PERIOD"]
[314156955,1708030254692,-152.073411,0.000389,5]
[314156956,1708030254702,-151.0,0.000389,7]
[314156957,1708030254711,-151.0,0.000389,7]
[314156958,1708030254721,-1315.77536883,0.000389,2]
[314156959,1708030254730,-3633.24920896,0.000389,9]
[314156960,1708030254740,-170.32893908,0.00038901,2]
[314156961,1708030254749,-3591.91711904,0.00038903,2]
[314156962,1708030254759,-500.0,0.00038904,7]
[314156963,1708030254768,-238.20103695,0.00038904,7]
[314156964,1708030254778,-500.0,0.00038904,7]
[314156965,1708030254788,-500.0,0.00038904,7]
[314156966,1708030254798,-484.64953903,0.00038904,7]
[314156967,1708030254807,-500.0,0.00038904,7]
[314156968,1708030254817,-454.4890015,0.00038904,7]
[314156969,1708030254826,-500.0,0.00038904,7]
[314156970,1708030254836,-500.0,0.00038904,7]
[314156971,1708030254846,-500.0,0.00038904,7]
[314156972,1708030254855,-500.0,0.00038904,7]
[314156973,1708030254865,-500.0,0.00038904,2]
[314156974,1708030254875,-500.0,0.00038904,7]
[314156975,1708030254884,-500.0,0.00038904,7]
[314156976,1708030254894,-500.0,0.00038904,7]
[314156977,1708030254904,-1000.0,0.00038904,7]
[314156978,1708030254913,-500.0,0.00038904,7]
[314156979,1708030254923,-500.0,0.00038904,7]
[314156980,1708030254932,-500.0,0.00038904,7]
[314156981,1708030254942,-226.39972563,0.00038904,120]
[314156982,1708030254952,-513.82959045,0.00038904,7]
[314156983,1708030254962,-500.0,0.00038904,7]
[314156984,1708030254971,-500.0,0.00038904,7]
[314156985,1708030254981,-500.0,0.00038904,7]
[314156986,1708030254991,-5000.0,0.00038904,14]
[314156987,1708030255001,-500.0,0.00038904,7]
[314156988,1708030255010,-150.0,0.00038904,7]
[314156989,1708030255019,-500.0,0.00038904,7]
[314156990,1708030255029,-500.0,0.00038904,7]
[314156991,1708030255038,-500.0,0.00038904,7]
[314156992,1708030255048,-500.0,0.00038904,7]
[314156993,1708030255057,-500.0,0.00038904,7]
[314156994,1708030255066,-500.0,0.00038904,7]
[314156995,1708030255076,-500.0,0.00038904,7]
[314156996,1708030255085,-500.0,0.00038904,7]
[314156997,1708030255094,-500.0,0.00038904,7]
[314156998,1708030255104,-500.0,0.00038904,7]
[314156999,1708030255113,-500.0,0.00038904,7]
[314157000,1708030255123,-1000.0,0.00038904,14]
[314157001,1708030255132,-500.0,0.00038904,7]
[314157002,1708030255142,-500.0,0.00038904,7]
[314157003,1708030255151,-500.0,0.00038904,7]
[314157004,1708030255160,-500.0,0.00038904,7]
[314157005,1708030255169,-500.0,0.00038904,7]
[314157006,1708030255178,-500.0,0.00038904,7]
[314157007,1708030255187,-500.0,0.00038904,2]
[314157008,1708030255197,-500.0,0.00038904,7]
[314157009,1708030255206,-500.0,0.00038904,7]
[314157010,1708030255215,-500.0,0.00038904,7]
[314157011,1708030255224,-500.0,0.00038904,7]
[314157012,1708030255234,-500.0,0.00038904,7]
[314157013,1708030255243,-500.0,0.00038904,7]
[314157014,1708030255252,-500.0,0.00038904,7]
[314157015,1708030255262,-770.94,0.00038904,7]
[314157016,1708030255271,-608.41532139,0.00038904,7]
[314157017,1708030255280,-500.0,0.00038904,7]
[314157018,1708030255289,-183.7,0.00038904,7]
[314157019,1708030255299,-500.0,0.00038904,7]
[314157020,1708030255308,-500.0,0.00038904,7]
[314157021,1708030255318,-500.0,0.00038904,7]
[314157022,1708030255328,-500.0,0.00038904,7]
[314157023,1708030255337,-500.0,0.00038904,7]
[314157024,1708030255347,-500.0,0.00038904,7]
[314157025,1708030255356,-500.0,0.00038904,7]
[314157026,1708030255366,-500.0,0.00038904,7]
[314157027,1708030255375,-583.14819807,0.00038904,7]
[314157028,1708030255385,-500.0,0.00038904,7]
[314157029,1708030255394,-500.0,0.00038904,7]
[314157030,1708030255403,-500.0,0.00038904,7]
[314157031,1708030255412,-929.82,0.00038904,7]
[314157032,1708030255421,-500.0,0.00038904,7]
[314157033,1708030255430,-500.0,0.00038904,7]
[314157034,1708030255440,-500.0,0.00038904,7]
[314157035,1708030255449,-500.0,0.00038904,7]
[314157036,1708030255461,-500.0,0.00038904,7]
[314157037,1708030255471,-911.6,0.00038904,7]
[314157038,1708030255480,-500.0,0.00038904,7]
[314157039,1708030255490,-500.0,0.00038904,7]
[314157040,1708030255499,-500.0,0.00038904,7]
[314157041,1708030255510,-685.25,0.00038904,7]
[314157042,1708030255519,-500.0,0.00038904,7]
[314157043,1708030255529,-614.56,0.00038904,7]
[314157044,1708030255540,-500.0,0.00038904,7]
[314157045,1708030255549,-500.0,0.00038904,7]
[314157046,1708030255559,-500.0,0.00038904,7]
[314157047,1708030255568,-521.64,0.00038904,7]
[314157048,1708030255577,-792.35,0.00038904,7]
[314157049,1708030255587,-500.0,0.00038904,7]
[314157050,1708030255597,-500.0,0.00038904,7]
[314157051,1708030255606,-500.0,0.00038904,7]
[314157052,1708030255616,-500.0,0.00038904,7]
[314157053,1708030255625,-2332.53,0.00038904,7]
[314157054,1708030255635,-500.0,0.00038904,7]
[314157055,1708030255644,-500.0,0.00038904,7]
[314157056,1708030255654,-522.47664279,0.00038904,7]
[314157057,1708030255663,-500.0,0.00038904,7]
[314157058,1708030255673,-500.0,0.00038904,7]
[314157059,1708030255683,-500.0,0.00038904,7]
[314157060,1708030255692,-585.9,0.00038904,7]
[314157061,1708030255702,-500.0,0.00038904,7]
[314157062,1708030255711,-500.0,0.00038904,7]
[314157063,1708030255721,-500.0,0.00038904,7]
[314157064,1708030255731,-500.0,0.00038904,2]
[314157065,1708030255740,-500.0,0.00038904,7]
[314157066,1708030255750,-500.0,0.00038904,7]
[314157067,1708030255759,-500.0,0.00038904,7]
[314157068,1708030255768,-500.0,0.00038904,7]
[314157069,1708030255779,-500.0,0.00038904,7]
[314157070,1708030255789,-500.0,0.00038904,7]
[314157071,1708030255798,-500.0,0.00038904,7]
[314157072,1708030255808,-500.0,0.00038904,7]
[314157073,1708030255817,-500.0,0.00038904,7]
[314157074,1708030255826,-500.0,0.00038904,7]
[314157075,1708030255836,-500.0,0.00038904,7]
[314157076,1708030255845,-500.0,0.00038904,7]
[314157077,1708030255855,-500.0,0.00038904,7]
[314157078,1708030255865,-500.0,0.00038904,7]
[314157079,1708030255874,-500.0,0.00038904,7]
[314157080,1708030255883,-1291.83,0.00038904,7]
[314157081,1708030255892,-500.0,0.00038904,7]
[314157082,1708030255901,-500.0,0.00038904,7]
[314157083,1708030255910,-500.0,0.00038904,7]
[314157084,1708030255919,-500.0,0.00038904,7]
[314157085,1708030255928,-666.17,0.00038904,7]
[314157086,1708030255936,-500.0,0.00038904,7]
[314157087,1708030255945,-512.54058163,0.00038904,7]
[314157088,1708030255954,-500.0,0.00038904,7]
[314157089,1708030255964,-500.0,0.00038904,7]
[314157090,1708030255973,-500.0,0.00038904,7]
[314157091,1708030255982,-500.0,0.00038904,7]
[314157092,1708030255991,-514.39,0.00038904,7]
[314157093,1708030256000,-500.0,0.00038904,7]
[314157094,1708030256009,-781.55,0.00038904,7]
[314157095,1708030256020,-520.18,0.00038904,7]
[314157096,1708030256030,-500.0,0.00038904,7]
[314157097,1708030256039,-500.0,0.00038904,7]
[314157098,1708030256049,-500.0,0.00038904,7]
[314157099,1708030256058,-500.0,0.00038904,7]
[314157100,1708030256068,-500.0,0.00038904,7]
[314157101,1708030256077,-500.0,0.00038904,7]
[314157102,1708030256087,-562.91,0.00038904,7]
[314157103,1708030256096,-500.0,0.00038904,7]
[314157104,1708030256105,-500.0,0.00038904,7]
[314157105,1708030256115,-500.0,0.00038904,7]
[314157106,1708030256124,-500.0,0.00038904,7]
[314157107,1708030256133,-500.0,0.00038904,7]
[314157108,1708030256142,-622.52,0.00038904,7]
[314157109,1708030256151,-1470.33,0.00038904,7]
[314157110,1708030256161,-500.0,0.00038904,7]
[314157111,1708030256170,-1026.64,0.00038904,7]
[314157112,1708030256179,-530.36,0.00038904,7]
[314157113,1708030256188,-526.37,0.00038904,7]
[314157114,1708030256198,-500.0,0.00038904,7]
[314157115,1708030256207,-500.0,0.00038904,7]
[314157116,1708030256249,-500.0,0.00038904,7]
[314157117,1708030256258,-500.0,0.00038904,7]
[314157118,1708030256267,-500.0,0.00038904,7]
[314157119,1708030256277,-629.84,0.00038904,7]
[314157120,1708030256286,-500.0,0.00038904,7]
[314157121,1708030256296,-500.0,0.00038904,7]
[314157122,1708030256304,-1476.08,0.00038904,7]
[314157123,1708030256313,-8496.67,0.00038904,7]
[314157124,1708030256323,-500.0,0.00038904,7]
[314157125,1708030256332,-500.0,0.00038904,7]
[314157126,1708030256342,-774.14,0.00038904,7]
[314157127,1708030256350,-500.0,0.00038904,7]
[314157128,1708030256359,-725.35,0.00038904,7]
[314157129,1708030256369,-500.0,0.00038904,7]
[314157130,1708030256377,-564.84509818,0.00038904,7]
[314157131,1708030256387,-212.5,0.00038904,2]
[314157132,1708030256396,-307.79,0.00038904,2]
[314157133,1708030256405,-343.33,0.00038904,2]
[314157134,1708030256414,-321.93,0.00038904,2]
[314157135,1708030256423,-422.41,0.00038904,2]
[314157136,1708030256434,-150.0,0.00038904,2]
[314157137,1708030256443,-304.03,0.00038904,2]
[314157138,1708030256452,-152.33,0.00038904,2]
[314157139,1708030256463,-422.41,0.00038904,2]
[314157140,1708030256473,-150.0,0.00038904,2]
[314157141,1708030256482,-150.0,0.00038904,2]
[314157142,1708030256491,-686.66,0.00038904,2]
[314157143,1708030256501,-150.0,0.00038904,2]
[314157144,1708030256510,-150.0,0.00038904,2]
[314157145,1708030256520,-422.41,0.00038904,2]
[314157146,1708030256531,-150.0,0.00038904,2]
[314157147,1708030256541,-150.0,0.00038904,2]
[314157148,1708030256550,-422.41,0.00038904,2]
[314157149,1708030256559,-150.0,0.00038904,2]
[314157150,1708030256568,-1261.17,0.00038906,2]
[314157151,1708030256577,-2931.8592157,0.00038925,2]
[314157152,1708030256586,-567.021624,0.00038948,24]
[314157153,1708030256596,-3316.12830692,0.00038999,2]
[314157154,1708030256605,-150.01,0.00038999,2]
[314157155,1708030256617,-100000.0,0.00039,19]
[314157156,1708030256626,-173747.54187523,0.00039,2]
[314157157,1708030256635,-309.85,0.00039,7]
[314157158,1708030256643,-89946.77,0.00039,20]
[314157159,1708030256653,-1021.85032997,0.00039,2]
[314157160,1708030256661,-758.61178606,0.00039,4]
[314157161,1708030256671,-151.0,0.00039,7]
[314157162,1708030256680,-189.919965,0.00039,7]
[314157163,1708030256689,-151.0,0.00039,7]
[314157164,1708030256699,-151.0,0.00039,2]
[314157165,1708030256708,-151.0,0.00039,2]
[314157166,1708030256717,-151.0,0.00039,7]
[314157167,1708030256726,-151.0,0.00039,7]
[314157168,1708030256736,-151.0,0.00039,7]
[314157169,1708030256745,-151.0,0.00039,7]
[314157170,1708030256754,-3000.0,0.00039,37]
[314157171,1708030256764,-268.162787,0.00039,7]
[314157172,1708030256775,-445.693169,0.00039,7]
[314157173,1708030256785,-445.693169,0.00039,7]
[314157174,1708030256795,-151.0,0.00039,7]
[314157175,1708030256805,-151.0,0.00039,7]
[314157176,1708030256814,-151.0,0.00039,7]
[314157177,1708030256824,-151.0,0.00039,7]
[314157178,1708030256833,-151.0,0.00039,7]
[314157179,1708030256843,-151.0,0.00039,7]
[314157180,1708030256852,-151.0,0.00039,7]
[314157181,1708030256861,-151.0,0.00039,7]
[314157182,1708030256871,-151.0,0.00039,7]
[314157183,1708030256880,-151.0,0.00039,7]
[314157184,1708030256889,-151.0,0.00039,7]
[314157185,1708030256898,-151.0,0.0003901,7]
[314157186,1708030256907,-3000.0,0.0003901,37]
[314157187,1708030256917,-2834.0,0.0003901,2]
[314157188,1708030256926,-203.076,0.0003901,2]
[314157189,1708030256935,-1049.26,0.0003901,2]
[314157190,1708030256944,-914.113,0.0003901,2]
[314157191,1708030256953,-841.0,0.0003901,2]
[314157192,1708030256962,-953.0,0.0003901,2]
[314157193,1708030256971,-1254.0,0.0003901,2]
[314157194,1708030256981,-1231.0,0.0003901,2]
[314157195,1708030256990,-216.0,0.0003901,2]
[314157196,1708030257000,-237.0,0.0003901,2]
[314157197,1708030257009,-1004.0,0.0003901,2]
[314157198,1708030257019,-690.048,0.0003901,2]
[314157199,1708030257029,-343.0,0.0003901,2]
[314157200,1708030257039,-538.743,0.0003901,2]
[314157201,1708030257049,-321.0,0.0003901,2]
[314157202,1708030257058,-150.0,0.0003901,2]
[314157203,1708030257067,-454.0,0.0003901,2]
[314157204,1708030257076,-150.0,0.0003901,2]
[314157205,1708030257086,-19841.0,0.0003901,2]
[314157206,1708030257096,-8162.0,0.0003901,2]
[314157207,1708030257104,-2289.0,0.0003901,2]
[314157208,1708030257114,-2926.0,0.0003901,2]
[314157209,1708030257124,-1037.0,0.0003901,2]
[314157210,1708030257133,-1091.84,0.00039013,2]
[314157211,1708030257143,-5480.514483,0.0003902,37]
[314157212,1708030257152,-500.0,0.00039024,7]
[314157213,1708030257162,-152.91,0.00039042,2]
[314157214,1708030257172,-3366.6,0.00039044,7]
[314157215,1708030257182,-3366.6,0.00039044,7]
[314157216,1708030257192,-567.021624,0.00039048,26]
[314157217,1708030257201,-2000.0,0.00039059,2]
[314157218,1708030257211,-200.0,0.00039059,2]
[314157219,1708030257220,-163.12,0.00039069,2]
[314157220,1708030257230,-150.0,0.00039092,2]
[314157221,1708030257240,-23884.5901533,0.00039094,2]
[314157222,1708030257250,-1261.17,0.00039099,2]
[314157223,1708030257259,-512.76,0.00039107,2]
[314157224,1708030257268,-784.02,0.00039136,2]
[314157225,1708030257279,-567.021624,0.00039148,24]
[314157226,1708030257290,-500.0,0.00039158,7]
[314157227,1708030257300,-500.0,0.00039178,7]
[314157228,1708030257309,-500.0,0.00039178,7]
[314157229,1708030257319,-500.0,0.00039178,7]
[314157230,1708030257329,-500.0,0.00039178,7]
[314157231,1708030257338,-500.0,0.00039178,7]
[314157232,1708030257348,-580.46279122,0.00039178,7]
[314157233,1708030257357,-500.0,0.00039178,2]
[314157234,1708030257367,-500.0,0.00039178,7]
[314157235,1708030257377,-500.0,0.00039178,7]
[314157236,1708030257386,-500.0,0.00039178,7]
[314157237,1708030257395,-1000.0,0.00039178,7]
[314157238,1708030257405,-500.0,0.00039178,7]
[314157239,1708030257415,-500.0,0.00039178,7]
[314157240,1708030257424,-492.26887777,0.00039178,7]
[314157241,1708030257435,-500.0,0.00039178,7]
[314157242,1708030257445,-500.0,0.00039178,7]
[314157243,1708030257455,-500.0,0.00039178,7]
[314157244,1708030257466,-5000.0,0.00039178,14]
[314157245,1708030257476,-500.0,0.00039178,7]
[314157246,1708030257486,-287.69631229,0.00039178,7]
[314157247,1708030257496,-500.0,0.00039178,7]
[314157248,1708030257506,-500.0,0.00039178,7]
[314157249,1708030257515,-500.0,0.00039178,7]
[314157250,1708030257526,-500.0,0.00039178,7]
[314157251,1708030257535,-500.0,0.00039178,7]
[314157252,1708030257545,-500.0,0.00039178,7]
[314157253,1708030257554,-500.0,0.00039178,7]
[314157254,1708030257564,-238.39364186,0.00039178,7]
[314157255,1708030257573,-500.0,0.00039178,7]
[314157256,1708030257583,-1000.0,0.00039178,14]
[314157257,1708030257592,-630.95214041,0.00039178,7]
[314157258,1708030257601,-500.0,0.00039178,7]
[314157259,1708030257611,-500.0,0.00039178,7]
[314157260,1708030257621,-500.0,0.00039178,7]
[314157261,1708030257631,-500.0,0.00039178,2]
[314157262,1708030257641,-432.95527314,0.00039178,7]
[314157263,1708030257650,-605.71013735,0.00039178,7]
[314157264,1708030257659,-500.0,0.00039178,7]
[314157265,1708030257669,-500.0,0.00039178,7]
[314157266,1708030257679,-500.0,0.00039178,7]
[314157267,1708030257688,-770.94,0.00039178,7]
[314157268,1708030257698,-500.0,0.00039178,7]
[314157269,1708030257708,-500.0,0.00039178,7]
[314157270,1708030257717,-500.0,0.00039178,7]
[314157271,1708030257727,-500.0,0.00039178,7]
[314157272,1708030257736,-500.0,0.00039178,7]
[314157273,1708030257745,-500.0,0.00039178,7]
[314157274,1708030257755,-501.06,0.00039178,7]
[314157275,1708030257765,-500.0,0.00039178,7]
[314157276,1708030257776,-268.18,0.00039178,7]
[314157277,1708030257789,-929.82,0.00039178,7]
[314157278,1708030257799,-500.0,0.00039178,7]
[314157279,1708030257809,-500.0,0.00039178,7]
[314157280,1708030257818,-500.0,0.00039178,7]
[314157281,1708030257828,-500.0,0.00039178,7]
[314157282,1708030257837,-911.6,0.00039178,7]
[314157283,1708030257847,-500.0,0.00039178,7]
[314157284,1708030257857,-500.0,0.00039178,7]
[314157285,1708030257866,-500.0,0.00039178,7]
[314157286,1708030257876,-685.25,0.00039178,7]
[314157287,1708030257885,-500.0,0.00039178,7]
[314157288,1708030257895,-614.56,0.00039178,7]
[314157289,1708030257905,-500.0,0.00039178,7]
[314157290,1708030257915,-500.0,0.00039178,7]
[314157291,1708030257925,-500.0,0.00039178,7]
[314157292,1708030257934,-521.64,0.00039178,7]
[314157293,1708030257944,-792.35,0.00039178,7]
[314157294,1708030257953,-500.0,0.00039178,7]
[314157295,1708030257962,-500.0,0.00039178,7]
[314157296,1708030257972,-1344.12256928,0.00039178,7]
[314157297,1708030258022,-988.40743072,0.00039178,7]
[314157298,1708030258032,-500.0,0.00039178,7]
[314157299,1708030258041,-500.0,0.00039178,7]
[314157300,1708030258051,-500.0,0.00039178,7]
[314157301,1708030258061,-585.9,0.00039178,7]
[314157302,1708030258071,-500.0,0.00039178,7]
[314157303,1708030258081,-500.0,0.00039178,7]
[314157304,1708030258090,-500.0,0.00039178,2]
[314157305,1708030258100,-500.0,0.00039178,7]
[314157306,1708030258110,-500.0,0.00039178,7]
[314157307,1708030258119,-606.62,0.00039178,7]
[314157308,1708030258129,-500.0,0.00039178,7]
[314157309,1708030258139,-500.0,0.00039178,7]
[314157310,1708030258148,-500.0,0.00039178,7]
[314157311,1708030258159,-500.0,0.00039178,7]
[314157312,1708030258168,-500.0,0.00039178,7]
[314157313,1708030258178,-639.06,0.00039178,7]
[314157314,1708030258188,-500.0,0.00039178,7]
[314157315,1708030258198,-500.0,0.00039178,7]
[314157316,1708030258207,-1291.83,0.00039178,7]
[314157317,1708030258216,-500.0,0.00039178,7]
[314157318,1708030258226,-666.17,0.00039178,7]
[314157319,1708030258236,-500.0,0.00039178,7]
[314157320,1708030258246,-611.55,0.00039178,7]
[314157321,1708030258256,-514.39,0.00039178,7]
[314157322,1708030258266,-500.0,0.00039178,7]
[314157323,1708030258276,-781.55,0.00039178,7]
[314157324,1708030258286,-520.18,0.00039178,7]
[314157325,1708030258295,-562.02588189,0.00039178,7]
[314157326,1708030258306,-500.0,0.00039178,7]
[314157327,1708030258315,-500.0,0.00039178,7]
[314157328,1708030258325,-562.91,0.00039178,7]
[314157329,1708030258335,-500.0,0.00039178,7]
[314157330,1708030258345,-500.0,0.00039178,7]
[314157331,1708030258355,-442.77776557,0.00039178,7]
[314157332,1708030258364,-622.52,0.00039178,7]
[314157333,1708030258374,-1470.33,0.00039178,7]
[314157334,1708030258383,-1026.64,0.00039178,7]
[314157335,1708030258393,-530.36,0.00039178,7]
[314157336,1708030258402,-526.37,0.00039178,7]
[314157337,1708030258412,-500.0,0.00039178,7]
[314157338,1708030258421,-500.0,0.00039178,7]
[314157339,1708030258431,-500.0,0.00039178,7]
[314157340,1708030258441,-629.84,0.00039178,7]
[314157341,1708030258450,-512.9,0.00039178,7]
[314157342,1708030258462,-1476.08,0.00039178,7]
[314157343,1708030258472,-8496.67,0.00039178,7]
[314157344,1708030258481,-500.0,0.00039178,7]
[314157345,1708030258490,-500.0,0.00039178,7]
[314157346,1708030258502,-774.14,0.00039178,7]
[314157347,1708030258511,-555.41858535,0.00039178,7]
[314157348,1708030258523,-725.35,0.00039178,7]
[314157349,1708030258534,-500.0,0.00039178,7]
[314157350,1708030258543,-9506.36991943,0.00039198,12]
[314157351,1708030258553,-100526.63324228,0.000392,2]
[314157352,1708030258563,-151.0,0.000392,7]
[314157353,1708030258573,-151.0,0.000392,7]
[314157354,1708030258582,-567.021624,0.00039248,26]
[314157355,1708030258593,-1261.17,0.00039291,2]
[314157356,1708030258603,-500.0,0.00039292,7]
[314157357,1708030258613,-297.0,0.000393,13]
[314157358,1708030258623,-2194.62448,0.000393,29]
[314157359,1708030258635,-954.0,0.0003931,2]
[314157360,1708030258645,-3366.6,0.00039317,7]
[314157361,1708030258654,-3366.6,0.00039317,7]
[314157362,1708030258664,-204.76937676,0.00039323,13]
[314157363,1708030258673,-151.0,0.00039325,4]
[314157364,1708030258683,-152.91,0.00039342,2]
[314157365,1708030258693,-567.021624,0.00039348,24]
[314157366,1708030258703,-151.0,0.00039365,7]
[314157367,1708030258712,-151.0,0.00039365,7]
[314157368,1708030258722,-151.0,0.00039365,7]
[314157369,1708030258732,-178.95106183,0.0003937,7]
[314157370,1708030258741,-151.0,0.00039379,2]
[314157371,1708030258751,-151.0,0.00039379,2]
[314157372,1708030258761,-151.0,0.00039379,7]
[314157373,1708030258770,-151.0,0.00039379,7]
[314157374,1708030258781,-151.0,0.00039379,7]
[314157375,1708030258791,-151.0,0.00039379,7]
[314157376,1708030258801,-445.693169,0.00039382,7]
[314157377,1708030258811,-445.693169,0.00039382,7]
[314157378,1708030258821,-151.0,0.00039382,7]
[314157379,1708030258830,-159.4368,0.00039382,7]
[314157380,1708030258840,-151.0,0.00039382,7]
[314157381,1708030258850,-151.0,0.00039382,7]
[314157382,1708030258860,-151.0,0.00039382,7]
[314157383,1708030258869,-151.0,0.00039382,7]
[314157384,1708030258879,-151.0,0.00039382,7]
[314157385,1708030258888,-151.0,0.00039382,7]
[314157386,1708030258898,-7060.0,0.00039383,14]
[314157387,1708030258907,-449.31213806,0.00039383,120]
[314157388,1708030258929,-500.0,0.00038356,7]
[314157389,1708030258939,-4721.33842827,0.00039383,120]
[314157390,1708030258948,-23330.35616421,0.00039383,2]
[314157391,1708030258960,-14130.86122962,0.00039383,2]
[314157392,1708030259113,-500.0,0.00038904,7]
[314157393,1708030259122,-500.0,0.00039178,7]
[314157394,1708030259132,-4736.03727299,0.00039383,2]
[314157395,1708030259149,-124273.90951568,0.00039383,2]
[314157396,1708030259159,-16189.31061349,0.00039383,2]
[314157397,1708030259168,-12902.84765519,0.00039383,2]
[314157398,1708030259178,-17760.93221565,0.00039383,2]
[314157399,1708030259345,-518.47674793,0.00038958,2]
[314157400,1708030259354,-978.88450271,0.00039383,2]
[314157401,1708030259364,-155.59477149,0.00039383,30]
[314157402,1708030259373,-1210.0,0.00039383,2]
[314157403,1708030259382,-1582.2744972,0.00039383,3]
[314157404,1708030259391,-2122.85837043,0.00039383,2]
[314157405,1708030259401,-15127.82733099,0.00039383,2]
[314157406,1708030259410,-334.90027175,0.00039383,2]
[314157407,1708030259419,-2892.9953561,0.00039383,2]
[314157408,1708030259428,-319.82430168,0.00039383,120]
[314157409,1708030259438,-540.57158774,0.00039383,120]
[314157410,1708030259448,-5805.85101675,0.00039383,2]
[314157411,1708030259460,-1462.94123009,0.00039383,2]
[314157412,1708030259469,-7093.57386482,0.00039383,2]
[314157413,1708030259479,-2630.36481404,0.00039383,2]
[314157414,1708030259488,-2361.54773627,0.00039383,2]
[314157415,1708030259498,-560.33504911,0.00039383,2]
[314157416,1708030259507,-2570.52193841,0.00039383,2]
[314157417,1708030259516,-64991.65661169,0.00039383,2]
[314157418,1708030259531,-404.59465002,0.00039383,2]
[314157419,1708030259550,-400.54,0.00039383,2]
[314157420,1708030259595,-5952.495703,0.00039383,2]
[314157421,1708030259607,-500.0,0.00039383,2]
[314157422,1708030259620,-2605.56786598,0.00039383,2]
[314157423,1708030259632,-891.93979995,0.00039383,2]
[314157424,1708030259643,-2101.28301747,0.00039383,2]
[314157425,1708030259655,-716.96043868,0.00039383,2]
[314157426,1708030259674,-550.34626894,0.00039383,2]
[314157427,1708030259685,-4000.6,0.00039383,2]
[314157428,1708030259697,-13657.75188363,0.00039383,2]
[314157429,1708030259708,-267.9653987,0.00039383,2]
[314157430,1708030259720,-35162.9452723,0.00039383,2]
[314157431,1708030259729,-3126.15322596,0.00039383,2]
[314157432,1708030259739,-167.66096928,0.00039383,2]
[314157433,1708030259748,-12148.66892043,0.00039383,10]
[314157434,1708030259758,-10026.20296418,0.00039383,2]
[314157435,1708030259767,-327.75895799,0.00039383,2]
[314157436,1708030259778,-21940.84606489,0.00039383,2]
[314157437,1708030259789,-3042.34635825,0.00039383,2]
[314157438,1708030259799,-3668.02171984,0.00039383,2]
[314157439,1708030259809,-206.47188145,0.00039383,2]
[314157440,1708030259819,-4821.56306069,0.00039383,2]
[314157441,1708030259829,-3000.0,0.00039383,2]
[314157442,1708030259838,-371.42781233,0.00039383,2]
[314157443,1708030259848,-155.62404836,0.00039383,2]
[314157444,1708030259858,-3736.47215147,0.00039383,120]
[314157445,1708030259867,-7668.81849285,0.00039383,2]
[314157446,1708030259877,-2627.01490054,0.00039383,30]
[314157447,1708030259887,-722.61625006,0.00039383,2]
[314157448,1708030259896,-250.16518342,0.00039383,15]
[314157449,1708030259906,-7323.68866317,0.00039383,2]
[314157450,1708030259915,-44181.88345209,0.00039383,2]
[314157451,1708030259926,-1210.52218213,0.00039383,2]
[314157452,1708030259935,-381.40573626,0.00039383,2]
[314157453,1708030259945,-155.0,0.00039383,2]
[314157454,1708030259955,-18612.29475165,0.00039383,10]